[Event "Galicia-ch 2021"]
[Site "Padron"]
[Date "2021.04.03"]
[Round "6.3"]
[White "Medarde Santiago, Luis Marcos"]
[Black "Del Prado Rodriguez, Xulio"]
[Result "1/2-1/2"]
[ECO "B57"]
[WhiteElo "2325"]
[BlackElo "2132"]
[Annotator "ChessBase"]
[PlyCount "165"]
[EventDate "2021.04.02"]
[EventType "swiss"]
[EventCountry "ESP"]
[SourceTitle "playchess.com"]
[Source "ChessBase"]
[SourceQuality "1"]
[TimeControl "5400+30"]

1. e4 {[%emt 0:03:35]} c5 {[%emt 0:00:00]} 2. Nf3 {[%emt 0:00:44]} d6 {[%emt 0:00:03]} 3. d4 {[%emt 0:00:03]} cxd4 {[%emt 0:00:10]} 4. Nxd4 {[%emt 0:00:04]} Nf6 {[%emt 0:00:09]} 5. Nc3 {[%emt 0:00:06]} Nc6 {[%emt 0:00:05]} 6. Bc4 {[%emt 0:00:53]} Qb6 {[%emt 0:00:17]} 7. Nxc6 {[%emt 0:00:05]} bxc6 {[%emt 0:00:08]} 8. O-O {[%emt 0:00:08]} g6 {[%emt 0:04:56]} 9. Qe1 {[%emt 0:00:06]} Qc5 {[%emt 0:06:11]} 10. Bb3 {[%emt 0:01:46]} Bg7 {[%emt 0:02:55]} 11. Be3 {[%emt 0:06:30]} Qh5 {[%emt 0:04:59]} 12. f3 {[%emt 0:00:27]} O-O {[%emt 0:00:57]} 13. Qf2 {[%emt 0:02:45]} Qa5 {[%emt 0:03:16]} 14. Rfe1 {[%emt 0:02:52]} Rd8 {[%emt 0:09:19]} 15. Rad1 {[%emt 0:05:01]} d5 {[%emt 0:18:20]} 16. exd5 {[%emt 0:10:17]} cxd5 {[%emt 0:00:54]} 17. Bd4 {[%emt 0:07:00]} e6 {[%emt 0:02:27]} 18. Qh4 {[%emt 0:09:02]} Nh5 {[%emt 0:07:16]} 19. Bxg7 {[%emt 0:05:13]} Nxg7 {[%emt 0:01:51]} 20. Ne4 {[%emt 0:08:00]} Nf5 {[%emt 0:04:28]} 21. Qf6 {[%emt 0:01:44]} Bb7 {[%emt 0:03:14]} 22. Ng5 {[%emt 0:02:03]} Qc5+ {[%emt 0:00:24]} 23. Kh1 {[%emt 0:01:17]} Qe7 {[%emt 0:01:04]} 24. Qxe7 {[%emt 0:00:59]} Nxe7 {[%emt 0:00:13]} 25. f4 {[%emt 0:00:28]} a5 {[%emt 0:05:39]} 26. a4 {[%emt 0:00:36]} Ba6 {[%emt 0:03:22]} 27. Nf3 {[%emt 0:01:12]} Rdc8 {[%emt 0:01:25]} 28. Nd4 {[%emt 0:04:40]} Nc6 {[%emt 0:06:37]} 29. Kg1 {[%emt 0:09:22]} Nxd4 {[%emt 0:00:18]} 30. Rxd4 {[%emt 0:00:02]} Rab8 {[%emt 0:00:19]} 31. Re3 {[%emt 0:02:03]} Kg7 {[%emt 0:01:34]} 32. Kf2 {[%emt 0:00:21]} Kf6 {[%emt 0:00:36]} 33. g4 {[%emt 0:00:45]} Rc5 {[%emt 0:02:20]} 34. g5+ {[%emt 0:01:13]} Kg7 {[%emt 0:01:03]} 35. Ke1 {[%emt 0:02:00]} Rc7 {[%emt 0:04:43]} 36. Kd2 {[%emt 0:01:42]} Rbc8 {[%emt 0:00:42]} 37. Rh3 {[%emt 0:01:22]} Bf1 {[%emt 0:00:23]} 38. Rg3 {[%emt 0:00:53]} Ba6 {[%emt 0:01:07]} 39. h4 {[%emt 0:03:12]} h5 {[%emt 0:00:41]} 40. gxh6+ {[%emt 0:01:05]} Kxh6 {[%emt 0:00:07]} 41. Re3 {[%emt 0:01:37]} Kh5 {[%emt 0:01:54]} 42. Re5+ {[%emt 0:00:17]} Kh6 {[%emt 0:00:15]} 43. h5 {[%emt 0:01:13]} Bc4 {[%emt 0:00:39]} 44. hxg6 {[%emt 0:03:00]} Kxg6 {[%emt 0:00:22]} 45. Bxc4 {[%emt 0:04:00]} Rxc4 {[%emt 0:00:05]} 46. c3 {[%emt 0:00:38]} Rxd4+ {[%emt 0:00:22]} 47. cxd4 {[%emt 0:00:01]} Rc4 {[%emt 0:00:01]} 48. f5+ {[%emt 0:00:17]} Kf6 {[%emt 0:00:13]} 49. Kd3 {[%emt 0:00:51]} Rxa4 {[%emt 0:00:11]} 50. fxe6 {[%emt 0:00:06]} fxe6 {[%emt 0:00:05]} 51. Rh5 {[%emt 0:00:14]} Rb4 {[%emt 0:00:26]} 52. Rh6+ {[%emt 0:00:08]} Ke7 {[%emt 0:00:19]} 53. Rh7+ {[%emt 0:00:06]} Kd6 {[%emt 0:00:05]} 54. Ra7 {[%emt 0:00:09]} Rxb2 {[%emt 0:01:26]} 55. Rxa5 {[%emt 0:00:19]} Rb3+ {[%emt 0:00:03]} 56. Ke2 {[%emt 0:00:23]} Ke7 {[%emt 0:00:50]} 57. Ra8 {[%emt 0:00:19]} Kf6 {[%emt 0:00:05]} 58. Rf8+ {[%emt 0:00:05]} Kg5 {[%emt 0:00:36]} 59. Kd2 {[%emt 0:00:23]} Rg3 {[%emt 0:00:40]} 60. Ke2 {[%emt 0:00:30]} Rg4 {[%emt 0:00:31]} 61. Ke3 {[%emt 0:00:10]} Re4+ {[%emt 0:00:08]} 62. Kd3 {[%emt 0:00:03]} Rf4 {[%emt 0:00:13]} 63. Rg8+ {[%emt 0:00:15]} Kf5 {[%emt 0:00:17]} 64. Rf8+ {[%emt 0:00:06]} Kg4 {[%emt 0:00:16]} 65. Rg8+ {[%emt 0:00:21]} Kf3 {[%emt 0:00:23]} 66. Rg6 {[%emt 0:00:07]} Re4 {[%emt 0:00:09]} 67. Rf6+ {[%emt 0:00:07]} Kg4 {[%emt 0:01:41]} 68. Rf8 {[%emt 0:00:27]} Kg5 {[%emt 0:00:09]} 69. Rg8+ {[%emt 0:00:15]} Kf6 {[%emt 0:00:07]} 70. Rf8+ {[%emt 0:00:04]} Ke7 {[%emt 0:00:07]} 71. Ra8 {[%emt 0:00:05]} e5 {[%emt 0:00:13]} 72. dxe5 {[%emt 0:00:06]} Rxe5 {[%emt 0:00:05]} 73. Kd4 {[%emt 0:00:10]} Re1 {[%emt 0:00:09]} 74. Ra7+ {[%emt 0:00:08]} Kd8 {[%emt 0:00:04]} 75. Kc5 {[%emt 0:00:09]} Re6 {[%emt 0:00:08]} 76. Kxd5 {[%emt 0:00:16]} Re1 {[%emt 0:00:13]} 77. Kd6 {[%emt 0:00:10]} Rd1+ {[%emt 0:00:06]} 78. Kc6 {[%emt 0:00:05]} Rc1+ {[%emt 0:00:09]} 79. Kd6 {[%emt 0:00:04]} Rd1+ {[%emt 0:00:06]} 80. Kc6 {[%emt 0:00:03]} Rc1+ {[%emt 0:00:10]} 81. Kd6 {[%emt 0:00:03]} Rd1+ {[%emt 0:00:09]} 82. Kc6 {[%emt 0:00:03]} Rc1+ {[%emt 0:00:15]} 83. Kd6 {[%emt 0:00:02]} 1/2-1/2

[Event "Galicia-ch 2021"]
[Site "Padron"]
[Date "2021.04.03"]
[Round "6.4"]
[White "Pena Varela, Martin"]
[Black "Lopez Gonzalez, Alfonso"]
[Result "1/2-1/2"]
[ECO "C00"]
[WhiteElo "1970"]
[BlackElo "2254"]
[Annotator "NA"]
[PlyCount "60"]
[EventDate "2021.04.02"]
[EventType "swiss"]
[EventCountry "ESP"]
[SourceTitle "playchess.com"]
[Source "ChessBase"]
[SourceQuality "1"]
[TimeControl "5400+30"]

1. e4 {[%emt 0:00:00]} e6 {[%emt 0:00:00]} 2. c4 {[%emt 0:00:00]} d5 {[%emt 0:00:30]} 3. cxd5 {[%emt 0:00:02]} exd5 {[%emt 0:00:07]} 4. exd5 {[%emt 0:00:03]} Qxd5 {[%emt 0:00:10]} 5. Nc3 {[%emt 0:00:31]} Qd8 {[%emt 0:01:26]} 6. d4 {[%emt 0:01:32]} Nf6 {[%emt 0:02:34]} 7. Bc4 {[%emt 0:02:54]} Be7 {[%emt 0:02:18]} 8. Nge2 {[%emt 0:04:03]} O-O {[%emt 0:02:04]} 9. O-O {[%emt 0:00:51]} c6 {[%emt 0:02:41]} 10. a3 {[%emt 0:05:25]} Nbd7 $11 {[%emt 0:03:14]} 11. Ng3 {[%emt 0:04:59]} Nb6 {[%emt 0:04:56]} 12. Ba2 {[%emt 0:02:26]} Nbd5 {[%emt 0:06:00]} 13. Nxd5 Nxd5 {[%emt 0:03:38]} 14. Ne4 {[%emt 0:05:37]} Bf5 {[%emt 0:00:50]} 15. Qf3 {[%emt 0:10:09]} Bg6 {[%emt 0:01:27]} 16. Nc3 {[%emt 0:06:55]} Nxc3 {[%emt 0:03:24]} 17. bxc3 {[%emt 0:00:26]} Qa5 {[%emt 0:03:47]} 18. Bb1 {[%emt 0:18:50]} Bf6 {[%emt 0:05:35]} 19. Bxg6 {[%emt 0:06:08]} hxg6 {[%emt 0:00:15]} 20. Rb1 {[%emt 0:02:04]} Qa6 {[%emt 0:01:53]} 21. Bf4 {[%emt 0:02:52]} Rfe8 {[%emt 0:02:06]} 22. h4 {[%emt 0:09:35]} Re7 {[%emt 0:06:24]} 23. Bd6 {[%emt 0:02:55]} Re6 {[%emt 0:02:26]} 24. Bb4 {[%emt 0:01:09]} Bxh4 {[%emt 0:03:07]} 25. Qf4 {[%emt 0:02:44]} Bf6 {[%emt 0:02:50]} 26. Rfe1 {[%emt 0:00:52]} g5 {[%emt 0:03:41]} 27. Qc7 {[%emt 0:01:07]} Rae8 {[%emt 0:02:22]} 28. Rxe6 {[%emt 0:01:15]} Rxe6 {[%emt 0:00:04]} 29. Qb8+ {[%emt 0:01:12]} Kh7 {[%emt 0:00:11]} 30. Qh2+ {[%emt 0:00:10]} Kg8 {[%emt 0:10:52]} 1/2-1/2

[Event "Galicia-ch 2021"]
[Site "Padron"]
[Date "2021.04.03"]
[Round "6.5"]
[White "Gonzalez Perez, Arian"]
[Black "Gonzalez Perez, Jose Ramon"]
[Result "1/2-1/2"]
[ECO "C44"]
[WhiteElo "2481"]
[BlackElo "2099"]
[Annotator "ChessBase"]
[PlyCount "112"]
[EventDate "2021.04.02"]
[EventType "swiss"]
[EventCountry "ESP"]
[SourceTitle "playchess.com"]
[Source "ChessBase"]
[SourceQuality "1"]
[TimeControl "5400+30"]

1. e4 {[%emt 0:09:33]} e5 {[%emt 0:00:00]} 2. Nf3 {[%emt 0:00:12]} Nc6 {[%emt 0:00:13]} 3. d4 {[%emt 0:00:03]} exd4 {[%emt 0:00:19]} 4. Nxd4 {[%emt 0:00:04]} Bb4+ {[%emt 0:00:10]} 5. c3 {[%emt 0:00:03]} Bc5 {[%emt 0:00:17]} 6. Be3 {[%emt 0:00:03]} Bb6 {[%emt 0:01:05]} 7. Nf5 {[%emt 0:00:04]} Bxe3 {[%emt 0:00:38]} 8. Nxe3 {[%emt 0:00:03]} Nf6 {[%emt 0:00:43]} 9. f3 {[%emt 0:00:03]} O-O {[%emt 0:01:05]} 10. c4 {[%emt 0:00:03]} d6 {[%emt 0:01:32]} 11. Nc3 {[%emt 0:00:04]} Nd7 {[%emt 0:02:51]} 12. Be2 {[%emt 0:01:31]} Nc5 {[%emt 0:02:42]} 13. O-O {[%emt 0:00:26]} a5 {[%emt 0:01:58]} 14. Ned5 {[%emt 0:04:02]} Be6 {[%emt 0:06:54]} 15. f4 {[%emt 0:01:27]} f5 {[%emt 0:06:32]} 16. exf5 {[%emt 0:01:48]} Bxf5 {[%emt 0:00:29]} 17. Nb5 {[%emt 0:03:55]} Rc8 {[%emt 0:00:16]} 18. Bg4 {[%emt 0:01:05]} Bxg4 {[%emt 0:10:37]} 19. Qxg4 {[%emt 0:00:10]} Ne7 {[%emt 0:00:37]} 20. Nd4 {[%emt 0:10:40]} Nxd5 {[%emt 0:12:43]} 21. cxd5 {[%emt 0:00:02]} Qf6 {[%emt 0:00:32]} 22. f5 {[%emt 0:00:49]} c6 {[%emt 0:01:35]} 23. Ne6 {[%emt 0:14:26]} Rfe8 {[%emt 0:07:24]} 24. h3 {[%emt 0:18:26]} cxd5 {[%emt 0:02:50]} 25. Nxg7 {[%emt 0:03:32]} Qxg7 {[%emt 0:05:18]} 26. f6 {[%emt 0:00:09]} Qxg4 {[%emt 0:00:13]} 27. f7+ {[%emt 0:00:03]} Kg7 {[%emt 0:00:19]} 28. fxe8=N+ {[%emt 0:00:06]} Rxe8 {[%emt 0:00:06]} 29. hxg4 {[%emt 0:00:06]} Re4 {[%emt 0:00:39]} 30. Rf5 {[%emt 0:00:46]} d4 {[%emt 0:01:58]} 31. Rd5 {[%emt 0:01:24]} Kf6 {[%emt 0:02:21]} 32. Rxd6+ {[%emt 0:00:10]} Ke5 {[%emt 0:00:10]} 33. Rh6 {[%emt 0:07:24]} d3 {[%emt 0:03:12]} 34. Rxh7 {[%emt 0:00:59]} Kd4 {[%emt 0:01:15]} 35. Rh8 {[%emt 0:04:11]} d2 {[%emt 0:05:28]} 36. Rd8+ {[%emt 0:00:10]} Ke3 {[%emt 0:00:08]} 37. Rf1 {[%emt 0:00:31]} Rd4 {[%emt 0:05:44]} 38. Rxd4 {[%emt 0:13:27]} Kxd4 {[%emt 0:00:07]} 39. Kf2 {[%emt 0:02:15]} Ne4+ {[%emt 0:02:34]} 40. Kf3 {[%emt 0:00:59]} Kd3 {[%emt 0:00:47]} 41. a4 {[%emt 0:02:04]} Ng5+ {[%emt 0:01:09]} 42. Kf4 {[%emt 0:02:06]} Ke2 {[%emt 0:00:14]} 43. Rh1 {[%emt 0:00:49]} Ne6+ {[%emt 0:06:49]} 44. Kf5 {[%emt 0:00:01]} Nd4+ {[%emt 0:00:07]} 45. Ke4 {[%emt 0:00:03]} Ne6 {[%emt 0:00:27]} 46. g3 {[%emt 0:01:10]} d1=Q {[%emt 0:02:52]} 47. Rxd1 {[%emt 0:00:08]} Kxd1 {[%emt 0:00:05]} 48. Ke5 {[%emt 0:01:15]} Nf8 {[%emt 0:02:17]} 49. g5 {[%emt 0:00:42]} Ke2 {[%emt 0:00:24]} 50. Kf5 {[%emt 0:00:34]} Kf3 {[%emt 0:00:11]} 51. g4 {[%emt 0:00:51]} Kg3 {[%emt 0:00:08]} 52. b3 {[%emt 0:00:27]} Kf3 {[%emt 0:00:20]} 53. Ke5 {[%emt 0:00:32]} Kxg4 {[%emt 0:00:43]} 54. Kd6 {[%emt 0:00:04]} Kxg5 {[%emt 0:00:08]} 55. Kc7 {[%emt 0:00:46]} Ne6+ {[%emt 0:00:13]} 56. Kb6 {[%emt 0:00:16]} Nd4 {[%emt 0:00:47]} 1/2-1/2

[Event "Galicia-ch 2021"]
[Site "Padron"]
[Date "2021.04.03"]
[Round "6.6"]
[White "Suarez Gomez, Julio"]
[Black "Sixto Puente, Eloy"]
[Result "1-0"]
[ECO "D10"]
[WhiteElo "2461"]
[BlackElo "2039"]
[Annotator "ChessBase"]
[PlyCount "107"]
[EventDate "2021.04.02"]
[EventType "swiss"]
[EventCountry "ESP"]
[SourceTitle "playchess.com"]
[Source "ChessBase"]
[SourceQuality "1"]
[TimeControl "5400+30"]

1. d4 {[%emt 0:00:09]} d5 {[%emt 0:00:28]} 2. c4 {[%emt 0:01:01]} c6 {[%emt 0:00:28]} 3. cxd5 {[%emt 0:03:04]} cxd5 {[%emt 0:00:29]} 4. Nc3 {[%emt 0:00:04]} Nf6 {[%emt 0:00:39]} 5. Bf4 {[%emt 0:00:09]} Nc6 {[%emt 0:00:23]} 6. e3 {[%emt 0:00:07]} a6 {[%emt 0:00:49]} 7. Bd3 {[%emt 0:00:39]} Bg4 {[%emt 0:02:43]} 8. f3 {[%emt 0:06:20]} Bh5 {[%emt 0:01:56]} 9. Qb3 {[%emt 0:08:44]} Na5 {[%emt 0:00:33]} 10. Qa4+ {[%emt 0:00:15]} Nc6 {[%emt 0:01:25]} 11. Rc1 {[%emt 0:03:32]} e6 {[%emt 0:02:47]} 12. Nge2 {[%emt 0:03:57]} Bd6 {[%emt 0:04:05]} 13. Bxd6 {[%emt 0:08:51]} Qxd6 {[%emt 0:00:16]} 14. Bb5 {[%emt 0:10:22]} O-O {[%emt 0:04:53]} 15. Bxc6 {[%emt 0:01:09]} bxc6 {[%emt 0:00:22]} 16. Kf2 {[%emt 0:00:56]} Rfb8 {[%emt 0:09:45]} 17. Qc2 {[%emt 0:06:23]} c5 {[%emt 0:03:14]} 18. b3 {[%emt 0:03:02]} cxd4 {[%emt 0:04:41]} 19. exd4 {[%emt 0:00:07]} Bg6 {[%emt 0:04:55]} 20. Qd2 {[%emt 0:00:07]} h6 {[%emt 0:01:48]} 21. Qf4 {[%emt 0:04:19]} Qa3 {[%emt 0:02:29]} 22. Qd2 {[%emt 0:02:50]} Qd6 {[%emt 0:01:20]} 23. Na4 {[%emt 0:00:08]} Rc8 {[%emt 0:05:13]} 24. h3 {[%emt 0:02:53]} Nd7 {[%emt 0:02:55]} 25. Rhd1 {[%emt 0:02:57]} Rab8 {[%emt 0:09:04]} 26. Kg1 {[%emt 0:03:06]} Qa3 {[%emt 0:01:34]} 27. Kh1 {[%emt 0:04:10]} Bf5 {[%emt 0:03:51]} 28. Kh2 {[%emt 0:09:05]} Bg6 {[%emt 0:01:26]} 29. Kg1 {[%emt 0:00:57]} Bf5 {[%emt 0:00:20]} 30. Kf2 {[%emt 0:00:12]} Bg6 {[%emt 0:00:17]} 31. Rxc8+ {[%emt 0:03:07]} Rxc8 {[%emt 0:00:08]} 32. Rc1 {[%emt 0:00:09]} Rxc1 {[%emt 0:00:32]} 33. Nxc1 {[%emt 0:00:04]} Qd6 {[%emt 0:03:01]} 34. Ne2 {[%emt 0:01:24]} Bf5 {[%emt 0:01:09]} 35. Qc3 {[%emt 0:00:33]} Nf6 {[%emt 0:03:50]} 36. Nc5 {[%emt 0:01:53]} Qh2 {[%emt 0:02:28]} 37. Kf1 {[%emt 0:01:24]} Nh5 {[%emt 0:05:05]} 38. Qe3 {[%emt 0:01:37]} Bb1 {[%emt 0:02:20]} 39. a3 {[%emt 0:01:27]} Qd6 {[%emt 0:02:45]} 40. Kf2 {[%emt 0:00:38]} Nf6 {[%emt 0:00:34]} 41. b4 {[%emt 0:01:27]} Ba2 {[%emt 0:01:01]} 42. Qe5 {[%emt 0:01:19]} Qb6 {[%emt 0:00:38]} 43. Qe3 {[%emt 0:01:18]} Bc4 {[%emt 0:00:34]} 44. Qd2 {[%emt 0:00:18]} Qd6 {[%emt 0:00:58]} 45. Qe3 {[%emt 0:00:30]} Qb6 {[%emt 0:00:23]} 46. Qc3 {[%emt 0:01:51]} Qd6 {[%emt 0:00:35]} 47. Ng3 {[%emt 0:00:28]} h5 {[%emt 0:02:35]} 48. Nf1 {[%emt 0:00:45]} Bxf1 {[%emt 0:01:49]} 49. Kxf1 {[%emt 0:00:04]} h4 {[%emt 0:00:31]} 50. Nd3 {[%emt 0:00:48]} Qd7 {[%emt 0:03:44]} 51. Nc5 {[%emt 0:01:17]} Qd6 {[%emt 0:00:05]} 52. Nd3 {[%emt 0:00:05]} Qd7 {[%emt 0:00:06]} 53. Nc5 {[%emt 0:02:27]} Qd6 {[%emt 0:00:04]} 54. Nd3 {[%emt 0:00:50]} 1-0